bitfinex/quotes_ETHUSD_20240718
["timestamp","ask_amount","ask_price","bid_price","bid_amount"]
[1721319908083,2.93962,3401.8,3400.9,5.0044]
[1721319908401,2.93962,3401.8,3401.2,2.94007]
[1721319908610,2.93962,3401.8,3401.3,2.94003]
[1721319909510,2.93971,3401.7,3401.1,2.94016]
[1721319909682,2.93971,3401.7,3401.1,5.88031]
[1721319909884,2.93971,3401.7,3401.1,2.94015]
[1721319911119,2.93963,3401.8,3401.2,2.94013]
[1721319911747,2.2938,3401.9,3401.3,2.94005]
[1721319912017,2.2938,3401.9,3401.2,2.94013]
[1721319912018,2.93963,3401.8,3401.2,2.94013]
[1721319912186,2.9395,3402.0,3401.3,2.94003]
[1721319912390,2.2817,3402.2,3401.4,0.588016]
[1721319912738,2.93942,3402.1,3401.3,2.539]
[1721319912884,2.93946,3402.0,3401.4,2.99872193]
[1721319913090,2.2817,3402.2,3401.4,2.99872193]
[1721319913294,5.22104,3402.2,3401.5,2.93987]
[1721319913605,2.93942,3402.1,3401.3,5.47899]
[1721319913804,2.2817,3402.2,3401.4,2.93996]
[1721319914007,2.93937,3402.1,3401.4,2.93996]
[1721319914250,2.93937,3402.1,3401.4,2.9399]
[1721319914390,2.93937,3402.1,3401.5,2.93985]
[1721319914595,2.93923,3402.3,3401.6,2.93971]
[1721319915133,2.93923,3402.3,3401.7,2.93969]
[1721319915445,2.93943,3402.1,3401.4,2.93994]
[1721319915730,2.93943,3402.1,3401.3,2.94002]
[1721319916093,0.813237,3402.3,3401.1,5.47916]
[1721319916094,2.93962,3401.8,3401.1,5.47916]
[1721319916300,11.67041093,3402.8,3401.0,2.94026]
[1721319916301,2.4881,3401.9,3401.0,2.94026]
[1721319916507,2.93976,3401.7,3401.1,2.9402]
[1721319917441,5.42763,3401.9,3401.1,2.94016]
[1721319917621,5.42763,3401.9,3401.2,2.94008]
[1721319917799,2.93971,3401.7,3401.0,5.47923]
[1721319918006,2.93971,3401.7,3401.1,2.94015]
[1721319919011,2.93971,3401.7,3401.2,0.07707197]
[1721319919281,2.9398,3401.6,3401.2,0.07707197]
[1721319919743,2.9398,3401.6,3401.3,0.07701546]
[1721319920117,2.93969,3401.8,3401.1,2.94022]
[1721319920323,2.93971,3401.7,3401.1,6.722317]
[1721319920526,5.42766,3401.9,3401.3,2.94003]
[1721319920706,2.93967,3401.8,3401.4,0.07695895]
[1721319920910,2.93971,3401.7,3401.1,3.782097]
[1721319921136,2.93971,3401.7,3401.2,0.07707197]
[1721319921335,2.93956,3401.9,3401.2,0.07707197]
[1721319921809,3.233516,3401.9,3401.2,0.07707197]
[1721319922011,2.93979,3401.6,3401.1,2.94021]
[1721319922213,2.93979,3401.6,3401.3,0.07701546]
[1721319922517,2.93979,3401.6,3401.1,2.94021]
[1721319922518,2.93979,3401.6,3401.4,0.07695895]
[1721319922824,2.93979,3401.6,3401.1,2.94021]
[1721319923015,2.93979,3401.6,3401.5,0.07690245]
[1721319923214,2.93979,3401.6,3401.1,2.94021]
[1721319923533,2.93978,3401.7,3401.1,2.94021]
[1721319923947,2.93978,3401.7,3401.2,0.07707197]
[1721319924326,2.93979,3401.6,3401.2,0.07707197]
[1721319924808,2.93962,3401.8,3401.2,0.07707197]
[1721319925571,2.9398,3401.6,3401.2,0.07707197]
[1721319925791,0.6173376,3401.6,3401.2,0.07707197]
[1721319925943,2.9403,3401.1,3400.2,5.22524]
[1721319926137,2.94032,3401.0,3400.3,0.0775807]
[1721319926337,2.94044,3400.9,3400.3,3.0184807]
[1721319927181,0.71946337,3400.9,3400.3,0.0775807]
[1721319927389,2.94073,3400.6,3400.3,0.0775807]
[1721319927593,2.94073,3400.6,3399.7,2.9414]
[1721319927754,2.94078,3400.5,3400.4,0.07756986]
[1721319927948,2.94084,3400.4,3399.7,2.9414]
[1721319928138,2.94084,3400.4,3399.7,3.764168]
[1721319928456,2.4448,3400.4,3399.6,2.94151]
[1721319928766,2.941,3400.2,3399.6,2.94151]
[1721319928948,2.941,3400.2,3399.5,2.94159]
[1721319929143,2.941,3400.2,3399.3,2.94176]
[1721319929144,2.94119,3400.0,3399.3,2.94176]
[1721319929377,2.94119,3400.0,3399.4,2.94169]
[1721319929976,2.941,3400.2,3399.5,2.9416]
[1721319930640,8.32653,3400.4,3399.5,5.4806]
[1721319930846,4.17202093,3401.0,3399.5,5.4806]
[1721319930847,2.94068,3400.6,3399.8,2.94134]
[1721319931374,2.94068,3400.6,3399.9,2.94126]
[1721319932190,5.2798,3400.8,3399.5,0.842235]
[1721319932191,2.9408,3400.5,3399.5,0.842235]
[1721319932485,2.9408,3400.5,3399.9,2.94125]
[1721319932686,2.9408,3400.5,3399.5,2.539]
[1721319932687,2.43,3400.4,3399.0,1.23607836]
[1721319932993,2.94103,3400.2,3399.5,2.9416]
[1721319933145,2.94103,3400.2,3399.5,3.23576]
[1721319933346,2.94103,3400.2,3399.5,2.9416]
[1721319933562,2.94103,3400.2,3399.6,2.94151]
[1721319933777,5.37083,3400.4,3399.6,3.01953227]
[1721319933981,5.37083,3400.4,3399.6,0.07802227]
[1721319934168,2.94108,3400.2,3399.6,0.07802227]
[1721319934356,2.94119,3400.0,3399.3,2.94175]
[1721319934684,2.9413,3399.9,3399.7,0.07796571]
[1721319935002,2.94098,3400.3,3399.8,0.07790915]
[1721319935308,2.94124,3400.0,3399.2,2.94186]
[1721319935450,2.94144,3399.7,3399.0,2.539]
[1721319935646,2.94144,3399.7,3399.3,0.07819198]
[1721319935848,2.94144,3399.7,3399.1,3.49195]
[1721319936071,2.94144,3399.7,3399.4,0.0781354]
[1721319936287,2.94127,3399.9,3399.1,3.49195]
[1721319936487,2.94112,3400.1,3399.5,0.07807883]
[1721319936675,2.94112,3400.1,3399.6,0.30197688]
[1721319936676,2.94117,3400.0,3399.6,0.30197688]
[1721319936878,2.94117,3400.0,3399.6,0.38019542]
[1721319937194,2.94095,3400.3,3399.6,0.07821854]
[1721319937402,2.94118,3400.0,3399.4,2.94161]
[1721319937550,2.94118,3400.0,3399.7,0.07842293]
[1721319937749,2.94118,3400.0,3399.2,2.94183]
[1721319937750,2.94126,3399.9,3399.2,2.94183]
[1721319937953,2.94135,3399.8,3399.3,0.7394881]
[1721319938464,2.94135,3399.8,3399.3,0.0786492]
[1721319938983,2.4264,3399.7,3399.4,0.07856585]
[1721319939289,2.94157,3399.6,3398.8,2.94216]
[1721319939602,2.4264,3399.7,3398.8,2.94216]
[1721319939603,2.94166,3399.5,3398.8,2.94216]
[1721319939766,2.94171,3399.4,3398.9,0.07884874]
[1721319940088,2.94186,3399.3,3398.9,0.07884874]
[1721319940252,2.94204,3399.0,3398.9,0.07884874]
[1721319940457,2.94204,3399.0,3398.3,2.94262]
[1721319940676,5.88347,3399.4,3398.9,0.07884874]
[1721319940994,2.94179,3399.3,3399.0,0.07879216]
[1721319941185,2.94179,3399.3,3398.7,2.94229]
[1721319941379,2.94179,3399.3,3399.1,0.07873557]
[1721319941588,2.94179,3399.3,3398.7,2.94229]
[1721319941814,2.94179,3399.3,3399.2,0.07867899]
[1721319941986,2.94186,3399.2,3398.5,5.88481]
[1721319942188,5.88381,3399.2,3398.5,2.94239]
[1721319942389,2.94186,3399.2,3398.5,2.94239]
[1721319942714,2.94206,3399.0,3398.4,2.94255]
[1721319943270,2.4855,3399.1,3398.5,2.94246]
[1721319943519,2.4855,3399.1,3398.5,2.94239]
[1721319944176,5.42749,3399.1,3398.5,2.94239]
[1721319944584,2.94204,3399.0,3398.3,5.88517]
[1721319944804,2.94204,3399.0,3398.4,2.94254]
[1721319946611,2.94219,3398.9,3398.2,5.48173]
[1721319946825,2.94223,3398.8,3398.2,5.48173]
[1721319947624,2.94207,3399.0,3398.2,8.42439]
[1721319947926,2.4855,3399.1,3398.5,2.9424]
[1721319948297,5.42746,3399.1,3398.5,2.9424]
[1721319948493,5.42746,3399.1,3398.6,2.94238]
[1721319948494,2.4855,3399.1,3398.6,2.94238]
[1721319948823,2.4855,3399.1,3398.7,0.07896192]
[1721319949939,5.42746,3399.1,3398.7,0.07896192]
[1721319950142,5.42746,3399.1,3398.4,2.94249]
[1721319950443,6.264392,3399.1,3398.4,2.94249]
[1721319950608,6.264392,3399.1,3398.5,0.07927717]
[1721319950992,6.264392,3399.1,3398.5,3.02173717]
[1721319951438,5.42746,3399.1,3398.5,3.02173717]
[1721319951931,2.94166,3399.5,3398.8,2.94216]
[1721319952145,2.9417,3399.4,3398.8,2.94216]
[1721319952312,2.9417,3399.4,3398.9,0.07905079]
[1721319953135,2.94204,3399.0,3398.9,0.07905079]
[1721319953298,5.35263,3399.3,3398.9,0.07905079]
[1721319953501,5.35263,3399.3,3398.5,2.94246]
[1721319953914,2.94205,3399.0,3398.5,2.94246]
[1721319954111,2.94195,3399.2,3398.6,0.07920382]
[1721319954330,2.94194,3399.2,3398.6,3.02157382]
[1721319954517,2.94205,3399.0,3398.6,0.07920382]
[1721319954697,3.477214,3399.2,3398.6,0.07920382]
[1721319954899,3.477214,3399.2,3398.6,3.02156382]
[1721319955129,2.4108,3399.3,3398.8,2.94221]
[1721319955333,2.4108,3399.3,3398.8,2.94215]
[1721319955639,2.4108,3399.3,3398.9,0.07904186]
[1721319958622,2.942,3399.1,3398.9,0.07904186]
[1721319958955,2.942,3399.1,3398.5,2.94247]
[1721319959314,2.94217,3398.9,3398.3,2.94258]
[1721319959515,2.94207,3399.0,3398.6,0.07919154]
[1721319959714,2.94207,3399.0,3398.3,5.88516]
[1721319959715,2.94207,3399.0,3398.3,2.94258]
[1721319959909,2.9419,3399.2,3398.7,0.07913495]
[1721319960134,2.94205,3399.0,3398.3,2.94256]
[1721319960334,2.94205,3399.0,3398.8,0.07907835]
[1721319960536,3.771525,3399.0,3398.4,2.94249]
[1721319960740,6.713635,3399.0,3398.9,0.07902176]
[1721319961049,6.713635,3399.0,3398.0,2.94285]
[1721319961050,2.94239,3398.6,3398.0,2.94285]
[1721319961209,2.94239,3398.6,3398.1,2.94281]
[1721319961409,2.94239,3398.6,3398.1,0.07950581]
[1721319961648,3.76764,3398.6,3398.1,0.07950581]
[1721319961825,2.94239,3398.6,3398.0,2.94288]
[1721319962028,2.94254,3398.5,3398.2,0.0794492]
[1721319962226,2.94256,3398.4,3398.2,0.0794492]
[1721319962547,2.94256,3398.4,3397.8,2.94301]
[1721319962943,2.3679,3398.7,3397.7,2.539]
[1721319963152,2.3679,3398.7,3398.1,2.94277]
[1721319963557,2.94208,3399.0,3398.2,3.02215041]
[1721319963759,7.5,3399.3,3398.5,2.539]
[1721319963974,2.2816,3399.5,3398.9,2.94212]
[1721319964150,2.94139,3399.8,3399.1,2.94189]
[1721319964151,5.22299,3399.8,3399.1,2.94189]
[1721319964337,5.22299,3399.8,3398.9,2.539]
[1721319964338,2.94162,3399.5,3398.9,2.539]
[1721319964672,6.495289,3399.8,3399.1,2.94187]
[1721319964673,2.2816,3399.8,3399.1,2.94187]
[1721319964873,2.94127,3399.9,3399.3,2.94176]
[1721319965175,2.94115,3400.1,3399.4,0.07878016]
[1721319965329,2.94125,3400.0,3399.4,0.07878016]
[1721319965533,2.94135,3399.8,3399.4,0.07878016]
[1721319965777,2.94135,3399.8,3399.0,2.94196]
[1721319965778,2.94152,3399.6,3399.0,2.94196]
[1721319966067,5.28343,3399.5,3398.9,2.94212]
[1721319966570,5.28343,3399.5,3398.7,2.94225]
[1721319966767,2.94182,3399.3,3398.7,2.94225]
[1721319967133,2.94196,3399.1,3398.5,2.94243]
[1721319967538,2.94196,3399.1,3398.5,5.88483]
[1721319967776,2.94196,3399.1,3398.5,2.9424]
[1721319968280,3.764345,3399.3,3398.1,5.88551]
[1721319968281,2.94221,3398.8,3398.1,5.88551]
[1721319968431,2.94221,3398.8,3398.1,2.94274]
[1721319968632,2.94244,3398.6,3397.9,5.48195]
[1721319969132,2.94263,3398.4,3397.7,2.94309]
[1721319969333,2.94263,3398.4,3397.8,2.94306]
[1721319970164,2.9427,3398.3,3397.6,2.9432]
[1721319970368,2.94263,3398.4,3397.4,2.94335]
[1721319970369,2.94274,3398.2,3397.4,2.94335]
[1721319970550,2.94242,3398.6,3397.7,2.539]
[1721319970751,2.94247,3398.5,3397.8,2.94306]
[1721319971334,7.5,3399.1,3398.4,2.94253]
[1721319971567,2.3656,3399.2,3398.5,2.539]
[1721319971749,2.3656,3399.2,3398.5,2.61825259]
[1721319972080,2.942,3399.1,3398.5,2.61825259]
[1721319972368,2.94238,3398.6,3398.5,0.07925259]
[1721319972569,2.94247,3398.5,3397.8,2.94305]
[1721319972877,2.94266,3398.3,3397.9,0.07959225]
[1721319973247,2.94266,3398.3,3397.6,2.94323]
[1721319973450,2.94258,3398.4,3398.0,0.07953563]
[1721319973651,2.94245,3398.6,3397.9,2.94292]
[1721319973854,2.94245,3398.6,3398.1,0.07951365]
[1721319974073,5.30783,3398.8,3397.7,2.539]
[1721319974074,2.94223,3398.8,3398.0,3.02245027]
[1721319974290,10.44206,3399.0,3398.1,2.539]
[1721319974291,7.5,3399.0,3398.1,2.539]
[1721319974576,2.94187,3399.2,3398.5,2.539]
[1721319974787,2.94187,3399.2,3398.5,5.48142]
[1721319974969,2.94187,3399.2,3398.6,0.07923062]
[1721319975144,2.94182,3399.3,3398.7,2.94224]
[1721319975342,2.94188,3399.2,3398.6,0.07923062]
[1721319975543,2.94188,3399.2,3398.7,0.07917403]
[1721319975755,2.94188,3399.2,3398.5,5.4814]
[1721319975954,2.94188,3399.2,3398.6,3.02161062]
[1721319977476,2.94178,3399.3,3398.7,2.94229]
[1721319977677,2.94192,3399.2,3398.6,0.07923062]
[1721319977853,2.94192,3399.2,3398.8,0.07911744]
[1721319978057,0.588342,3399.3,3398.7,0.07917403]
[1721319978255,2.94175,3399.4,3398.9,0.07906085]
[1721319978589,2.94178,3399.3,3399.0,0.07900426]
[1721319978881,5.88364,3399.3,3398.7,2.94222]
[1721319979086,2.94178,3399.3,3399.1,0.07894768]
[1721319979255,2.94178,3399.3,3398.6,2.94238]
[1721319979444,2.94178,3399.3,3397.8,1.53478379]
[1721319979445,2.94215,3398.9,3398.3,2.9426]
[1721319979643,2.94215,3398.9,3398.0,2.94283]
[1721319979843,2.94231,3398.7,3398.0,2.94283]
[1721319980160,5.88469,3398.7,3398.0,2.94283]
[1721319980480,2.94239,3398.6,3398.0,2.9429]
[1721319980705,2.94208,3399.0,3398.1,2.94275]
[1721319980848,2.94208,3399.0,3398.3,2.94258]
[1721319981049,5.88419,3399.0,3398.3,2.94258]
[1721319981362,2.94218,3398.9,3398.1,5.48177]
[1721319981556,2.94222,3398.8,3398.1,5.48177]
[1721319981767,2.94222,3398.8,3398.2,2.94273]
[1721319981974,2.94199,3399.1,3398.2,2.94273]
[1721319982175,2.94214,3398.9,3398.2,2.94273]
[1721319982490,0.59989832,3399.0,3398.2,2.94273]
[1721319982491,2.94222,3398.8,3398.2,2.94273]
[1721319982983,1.23163093,3398.9,3398.3,2.94263]
[1721319983188,1.83152925,3399.0,3398.4,2.94254]
[1721319983487,1.23163093,3399.1,3398.7,2.94224]
[1721319983665,5.43576,3399.4,3398.7,2.94224]
[1721319983666,1.23163093,3399.2,3398.7,2.94224]
[1721319984060,2.94196,3399.1,3398.5,2.539]
[1721319984274,1.23163093,3399.2,3398.5,2.94242]
[1721319984497,1.23163093,3399.2,3398.5,5.88482]
[1721319984787,2.942,3399.1,3398.3,2.94258]
[1721319984955,4.58102053,3399.1,3398.3,2.94258]
[1721319985289,2.94217,3398.9,3398.3,2.94258]
[1721319985584,2.94223,3398.8,3398.4,0.07938625]
[1721319985797,2.94204,3399.0,3398.1,5.48178]
[1721319985957,2.94204,3399.0,3398.4,2.94255]
[1721319986159,2.94229,3398.8,3398.5,0.07932965]
[1721319986387,5.88458,3398.8,3398.5,0.07932965]
[1721319986562,5.88458,3398.8,3398.6,0.07928421]
[1721319986563,2.94229,3398.8,3398.6,0.07928421]
[1721319986760,2.94229,3398.8,3398.1,5.48182]
[1721319987072,1.23163093,3398.9,3398.3,2.94263]
[1721319987384,1.23163093,3398.9,3398.4,2.94253]
[1721319987580,4.17370093,3399.0,3398.5,0.07934081]
[1721319987902,2.94217,3398.9,3398.5,0.07934081]
[1721319988203,4.17370093,3399.0,3398.3,2.94263]
[1721319988387,2.94207,3399.0,3398.3,2.94263]
[1721319988591,2.94217,3398.9,3398.4,0.07939183]
[1721319988892,2.94223,3398.8,3398.2,2.94267]
[1721319989094,2.09647553,3398.9,3398.5,0.07933523]
[1721319989294,2.94278,3398.2,3397.5,2.94333]
[1721319989500,2.94278,3398.2,3397.6,2.94321]
[1721319989659,2.94265,3398.3,3397.7,2.94314]
[1721319990055,2.94274,3398.2,3397.8,0.07973152]
[1721319990472,1.22631588,3398.4,3397.5,2.94325]
[1721319990473,2.94257,3398.4,3397.5,2.94325]
[1721319990670,2.94265,3398.3,3397.9,0.07967489]
[1721319990887,2.94265,3398.3,3397.7,2.94315]
[1721319991091,2.94274,3398.2,3398.0,0.07961828]
[1721319991404,2.94274,3398.2,3398.1,0.07956166]
[1721319991563,2.94274,3398.2,3397.5,2.94325]
[1721319991765,2.94274,3398.2,3397.6,0.07984477]
[1721319991965,2.94274,3398.2,3397.6,3.02307477]
[1721319992707,2.94257,3398.4,3397.7,2.94316]
[1721319992992,2.94257,3398.4,3397.8,0.07973152]
[1721319993295,2.94275,3398.2,3397.8,0.07973152]
[1721319993658,2.94275,3398.2,3397.4,2.94338]
[1721319994000,2.94265,3398.3,3397.6,2.94319]
[1721319994181,2.94273,3398.2,3397.7,0.07978814]
[1721319995296,2.94273,3398.2,3397.5,2.94329]
[1721319995498,2.94273,3398.2,3397.8,0.07973152]
[1721319995499,5.40445,3398.0,3397.8,0.07973152]
[1721319995662,5.40445,3398.0,3397.3,2.94344]
[1721319995864,8.34743,3398.0,3397.9,0.07967489]
[1721319996096,2.9431,3397.8,3397.1,2.94363]
[1721319996295,2.9431,3397.8,3397.2,2.94357]
[1721319996458,2.9431,3397.8,3397.2,3.02364132]
[1721319996666,5.40445,3398.0,3397.2,3.02360132]
[1721319997093,3.44085798,3398.2,3397.4,2.94334]
[1721319997292,2.94274,3398.2,3397.4,5.36934]
[1721319997512,2.94295,3398.0,3397.5,0.08003316]
[1721319997805,2.94295,3398.0,3397.3,2.539]
[1721319997806,2.94299,3397.9,3397.3,5.48251]
[1721319998014,2.94299,3397.9,3397.4,0.0800898]
[1721319998678,2.94312,3397.8,3397.4,0.0800898]
[1721319998883,2.94326,3397.6,3397.4,0.0800898]
[1721319999086,2.94326,3397.6,3396.9,2.539]
[1721319999417,2.9435,3397.4,3396.7,7.44]
[1721319999579,0.834761,3397.7,3396.6,5.88811]
[1721319999580,2.94351,3397.3,3396.6,5.88811]
[1721319999784,2.06107688,3397.7,3396.7,0.07786603]
[1721319999963,2.94353,3397.3,3396.5,2.94415]
[1721320000365,2.9437,3397.1,3396.6,0.07792269]
[1721320000596,2.9437,3397.1,3396.5,2.94415]
[1721320000901,5.26265,3397.3,3396.6,0.07792269]
[1721320001111,2.9437,3397.1,3396.6,0.07792269]
[1721320001292,2.94386,3396.9,3396.2,2.94445]
[1721320001482,2.94386,3396.9,3396.7,0.07786603]
[1721320001688,2.94386,3396.9,3396.2,2.94445]
[1721320001905,2.94386,3396.9,3396.8,0.07780937]
[1721320001906,5.88779,3396.9,3396.8,0.07780937]
[1721320002116,2.94404,3396.7,3396.0,2.94457]
[1721320002578,2.94404,3396.7,3396.1,3.02020318]
[1721320002898,2.94395,3396.8,3396.1,3.02020318]
[1721320003471,2.94395,3396.8,3396.2,2.94445]
[1721320003890,2.94395,3396.8,3396.3,0.07055564]
[1721320004300,2.94395,3396.8,3396.2,2.94445]
[1721320004511,2.94395,3396.8,3396.4,0.07049897]
[1721320004720,2.94395,3396.8,3396.3,0.07055564]
[1721320005015,2.94395,3396.8,3396.4,0.07049897]
[1721320005186,2.94403,3396.7,3396.0,2.94456]
[1721320005499,2.94403,3396.7,3396.1,3.01284798]
[1721320006412,2.94387,3396.9,3396.2,2.94442]
[1721320006594,2.94387,3396.9,3396.3,0.06818462]
[1721320007138,2.94395,3396.8,3396.3,0.06818462]
[1721320007644,2.94395,3396.8,3396.1,6.0793018]
[1721320007645,2.94395,3396.8,3396.4,0.06812795]
[1721320007946,2.94377,3397.0,3396.4,0.06812795]
[1721320008114,2.94377,3397.0,3396.2,2.94445]
[1721320008300,2.94399,3396.8,3396.5,0.06807128]
[1721320008501,2.94396,3396.8,3396.1,5.48352]
[1721320008727,2.94396,3396.8,3396.6,0.06801462]
[1721320008935,2.94396,3396.8,3396.1,5.48354]
[1721320009237,2.94396,3396.8,3396.1,2.539]
[1721320009404,2.94396,3396.8,3396.2,0.0682413]
[1721320009807,2.94401,3396.8,3396.2,0.0682413]
[1721320010314,2.94371,3397.1,3396.4,2.94421]
[1721320010517,5.88746,3397.1,3396.4,2.94421]
[1721320010733,3.0,3397.0,3396.5,3.01258535]
[1721320011041,3.0,3397.2,3396.5,5.95671535]
[1721320011237,3.0,3397.2,3396.5,3.9103006]
[1721320011941,3.0,3397.2,3396.5,9.3934406]
[1721320012158,5.94351,3397.3,3396.5,6.4493006]
[1721320012368,2.94384,3397.0,3396.5,0.06838535]
[1721320012727,2.94384,3397.0,3396.1,2.94451]
[1721320012930,2.94411,3396.7,3396.6,0.06168542]
[1721320013162,2.94411,3396.7,3395.9,5.88928]
[1721320013364,2.94411,3396.7,3396.0,2.94463]
[1721320013677,2.9438,3397.0,3396.0,3.00663546]
[1721320013841,2.944,3396.8,3396.0,4.09822001]
[1721320014239,2.94408,3396.7,3396.0,4.09822001]
[1721320014446,2.944,3396.8,3396.0,4.09822001]
[1721320014751,2.944,3396.8,3396.0,4.09816001]
[1721320014955,2.944,3396.8,3396.2,2.94444]
[1721320015471,2.94377,3397.0,3396.3,3.00622654]
[1721320015790,2.4472,3397.2,3396.3,0.06184654]
[1721320016060,2.94362,3397.2,3396.5,2.94415]
[1721320016275,3.0,3397.1,3396.5,2.94415]
[1721320016645,3.0,3397.1,3396.6,0.06167654]
[1721320017057,3.0,3397.1,3396.5,2.94415]
[1721320017227,3.0,3397.1,3396.7,0.06161987]
[1721320017429,2.9438,3397.0,3396.3,2.94435]
[1721320017733,2.9438,3397.0,3396.4,0.06178987]
[1721320017930,3.0,3397.1,3396.4,0.06178987]
[1721320018140,5.31949,3397.6,3396.4,0.06178987]
[1721320018141,2.94343,3397.4,3396.4,0.06178987]
[1721320018359,2.94343,3397.4,3396.7,2.94397]
[1721320018544,3.0,3397.3,3396.8,2.94391]
[1721320018734,3.0,3397.5,3396.9,0.588788]
[1721320018936,2.94335,3397.5,3396.9,2.94384]
[1721320019131,2.94299,3397.9,3397.0,0.06144991]
[1721320019756,2.2508,3398.0,3397.3,2.94349]
[1721320020070,2.94288,3398.1,3397.4,3.00462333]
[1721320020429,3.0,3398.0,3397.4,0.06122333]
[1721320020635,2.94282,3398.1,3397.4,0.06122333]
[1721320020862,0.523602,3398.1,3397.4,0.06122333]
[1721320021177,7.5,3398.6,3397.6,2.94319]
[1721320021178,2.94253,3398.5,3397.6,2.94319]
[1721320021332,7.5,3398.6,3397.6,2.94319]
[1721320021333,2.94256,3398.4,3397.6,2.94319]
[1721320021670,2.94256,3398.4,3397.7,0.06095577]
[1721320022374,3.0,3398.3,3397.7,0.06095577]
[1721320022531,2.94283,3398.1,3397.4,2.94336]
[1721320022734,6.237233,3398.0,3397.8,0.06089914]
[1721320023059,3.294283,3398.0,3397.9,0.06084252]
[1721320023232,3.294283,3398.0,3397.3,5.4825]
[1721320023433,0.294283,3398.0,3397.3,5.4825]
[1721320023650,3.0,3398.1,3397.6,2.94325]
[1721320023853,3.0,3398.3,3397.7,2.94308]
[1721320024073,2.94238,3398.6,3397.8,2.94302]
[1721320024074,3.0,3398.5,3397.8,2.94302]
[1721320024295,5.94247,3398.5,3397.8,3.00391914]
[1721320024451,2.94256,3398.4,3397.8,0.06089914]
[1721320024783,6.536956,3398.3,3397.5,2.94333]
[1721320024979,6.536956,3398.3,3397.6,2.94325]
[1721320025152,3.594256,3398.3,3397.6,3.0042624]
[1721320025479,3.0,3398.2,3397.6,3.0042624]
[1721320025638,0.594256,3398.3,3397.6,3.0042624]
[1721320025840,3.0,3398.4,3397.8,2.94301]
[1721320026074,3.0,3398.5,3397.8,2.94301]
[1721320026273,5.94247,3398.5,3397.8,2.94301]
[1721320026437,5.94247,3398.5,3397.9,0.06084252]
[1721320026648,3.0,3398.5,3397.8,2.94307]
[1721320026974,3.0,3398.6,3398.0,0.0607859]
[1721320027278,0.823556,3398.5,3398.1,0.06072928]
[1721320027481,0.823556,3398.5,3397.9,2.94294]
[1721320027843,3.766026,3398.5,3397.7,2.94315]
[1721320028142,3.0,3398.4,3397.7,2.94315]
[1721320028343,3.0,3398.4,3397.8,0.06089914]
[1721320028581,0.823556,3398.5,3397.9,2.94298]
[1721320029081,0.823556,3398.5,3398.0,0.0607859]
[1721320029840,2.94256,3398.4,3397.6,2.94317]
[1721320030051,2.94265,3398.3,3397.6,2.94317]
[1721320030374,1.00993462,3398.4,3397.7,3.00397259]
[1721320030536,3.0,3398.4,3397.9,2.94299]
[1721320030740,3.766046,3398.5,3397.8,0.06076597]
[1721320030979,3.0,3398.4,3398.0,0.06065161]
[1721320031283,3.0,3398.4,3397.9,2.94291]
[1721320031284,2.9421,3399.0,3398.3,2.94264]
[1721320031581,1.585853,3398.9,3398.3,2.94264]
[1721320031879,1.585853,3398.9,3398.4,0.06042517]
[1721320032064,4.527983,3398.9,3398.4,0.06042517]
[1721320032263,2.94223,3398.8,3398.4,0.06042517]
[1721320032466,2.94189,3399.2,3398.4,0.06042517]
[1721320032653,6.19919286,3399.2,3398.4,3.00293517]
[1721320032854,0.31536286,3399.2,3398.6,2.94233]
[1721320033185,5.41622,3399.4,3398.7,2.94227]
[1721320033186,2.4745,3399.4,3398.7,2.94227]
[1721320033639,2.94162,3399.5,3398.7,2.94222]
[1721320034040,7.5,3399.6,3398.9,2.94207]
[1721320034041,10.44154,3399.6,3398.9,2.94207]
[1721320034262,2.94154,3399.6,3398.9,2.94207]
[1721320034453,3.0,3399.5,3399.0,0.05990701]
[1721320034667,3.842744,3399.5,3399.0,0.05990701]
[1721320035080,3.0,3399.5,3399.0,0.05990701]
[1721320035280,2.94124,3400.0,3399.0,0.05990701]
[1721320035581,5.34379,3400.1,3399.4,2.94167]
[1721320035938,2.94099,3400.3,3399.5,3.0011253]
[1721320036268,2.4027,3400.6,3399.5,3.0011253]
[1721320036469,2.941,3400.3,3399.5,3.0011253]
[1721320037140,2.941,3400.3,3399.6,2.9415]
[1721320037337,2.941,3400.3,3399.6,3.00103874]
[1721320037645,2.94083,3400.4,3399.7,2.94142]
[1721320037866,3.93104,3400.5,3399.8,2.94129]
[1721320037867,0.99027,3400.5,3399.8,2.94129]
[1721320038078,0.99027,3400.5,3399.8,3.00071562]
[1721320038235,0.99027,3400.5,3399.8,0.05942562]
[1721320038455,10.44048,3400.8,3399.9,2.94125]
[1721320038675,10.44048,3400.8,3400.0,2.94114]
[1721320038840,7.5,3400.8,3400.1,2.94102]
[1721320039046,7.5,3400.8,3400.2,3.00011403]
[1721320039289,5.34024,3401.0,3400.2,3.00011403]
[1721320039471,2.94016,3401.2,3400.2,0.05912403]
[1721320039672,2.94022,3401.1,3400.4,2.94076]
[1721320039995,2.94016,3401.2,3400.4,2.94076]
[1721320040157,2.94023,3401.1,3400.5,0.05893003]
[1721320040882,2.94005,3401.3,3400.5,0.05893003]
[1721320041085,10.43991,3401.5,3400.5,0.05893003]
[1721320041380,3.0,3401.4,3400.6,0.05881809]
[1721320041548,5.93996,3401.4,3400.7,2.94051]
[1721320041753,2.93984,3401.6,3400.8,2.94044]
[1721320041972,2.93963,3401.8,3400.9,5.47938]
[1721320042140,3.527628,3401.7,3401.0,2.94025]
[1721320042343,2.93981,3401.6,3401.0,0.05857316]
[1721320042576,2.93981,3401.6,3400.5,2.539]
[1721320042577,2.94003,3401.4,3400.7,2.94055]
[1721320042776,2.94005,3401.3,3401.1,0.05851664]
[1721320042964,2.93981,3401.6,3400.6,2.94063]